bitfinex-derivatives/quotes_SOLF0:USTF0_20241107
["timestamp","ask_amount","ask_price","bid_price","bid_amount"]
[1731008554443,19.64666722,194.72,194.57,19.64666722]
[1731008554739,19.64666722,194.69,194.58,2.3485]
[1731008554941,19.64666722,194.66,194.54,5.0841]
[1731008555144,2.5657,194.64,194.55,2.5666]
[1731008555743,2.5657,194.64,194.54,5.0841]
[1731008555945,2.5657,194.64,194.54,1.1841]
[1731008556143,19.64666722,194.66,194.54,1.1841]
[1731008556344,19.64666722,194.66,194.53,2.4675]
[1731008556545,19.64666722,194.63,194.51,3.9]
[1731008557840,2.5663,194.59,194.51,6.4673]
[1731008558749,2.5663,194.59,194.52,2.5672]
[1731008559246,19.64666722,194.6,194.48,2.5373]
[1731008559638,19.64666722,194.69,194.48,2.5373]
[1731008559639,19.64666722,194.63,194.48,2.5373]
[1731008560146,19.64666722,194.58,194.29,2.61937804]
[1731008560351,19.64666722,194.51,194.41,2.5686]
[1731008560548,19.64666722,194.51,194.4,2.57185663]
[1731008560850,19.64666722,194.51,194.31,5.36760925]
[1731008561044,19.64666722,194.51,194.34,19.64666722]
[1731008561244,19.64666722,194.51,194.38,19.64666722]
[1731008561447,19.64666722,194.55,194.45,2.568]
[1731008561644,19.64666722,194.58,194.43,2.6242387]
[1731008561841,19.64666722,194.58,194.44,2.5021]
[1731008562050,19.64666722,194.61,194.52,2.5671]
[1731008562652,22.21226722,194.64,194.55,2.5667]
[1731008562848,19.64666722,194.64,194.51,1.2299]
[1731008563249,2.5655,194.65,194.51,3.78506627]
[1731008563550,19.64666722,194.71,194.44,23.54666722]
[1731008563551,19.64666722,194.6,194.44,23.54666722]
[1731008563853,19.64666722,194.71,194.47,19.64666722]
[1731008563854,19.64666722,194.63,194.47,19.64666722]
[1731008564351,19.64666722,194.6,194.47,19.64666722]
[1731008564552,19.64666722,194.6,194.45,3.732]
[1731008564753,19.64666722,194.6,194.5,2.5672]
[1731008564953,19.64666722,194.6,194.51,3.9]
[1731008565153,19.64666722,194.64,194.51,3.9]
[1731008565545,2.5657,194.63,194.54,2.5668]
[1731008565755,19.64666722,194.64,194.51,3.9]
[1731008566254,2.5659,194.62,194.54,2.5668]
[1731008566752,2.5659,194.61,194.54,2.5668]
[1731008567154,2.5659,194.61,194.53,2.5669]
[1731008567453,19.64666722,194.64,194.51,6.42332346]
[1731008567655,19.64666722,194.64,194.55,2.5665]
[1731008567856,19.64666722,194.64,194.51,6.42332346]
[1731008568057,2.5656,194.63,194.51,6.42332346]
[1731008568452,2.5656,194.63,194.55,2.5665]
[1731008568652,2.5654,194.65,194.51,6.42332346]
[1731008568855,19.64666722,194.7,194.6,2.566]
[1731008569056,19.64666722,194.7,194.59,4.04]
[1731008569755,19.64666722,194.67,194.59,4.04]
[1731008570056,2.5653,194.65,194.59,4.04]
[1731008570451,19.64666722,194.71,194.59,4.04]
[1731008570763,19.64666722,194.71,194.61,2.5656]
[1731008571057,19.64666722,194.71,194.59,4.04]
[1731008572552,2.5648,194.68,194.62,2.5655]
[1731008572854,19.64666722,194.71,194.62,2.5655]
[1731008573158,19.64666722,194.71,194.59,4.04]
[1731008573362,0.20673,194.74,194.59,4.04]
[1731008573567,0.20673,194.74,194.6,19.64666722]
[1731008574263,2.5643,194.71,194.64,2.5652]
[1731008574466,2.5643,194.71,194.62,2.54371805]
[1731008574762,2.5643,194.71,194.6,19.64666722]
[1731008574958,2.5645,194.7,194.6,19.64666722]
[1731008575164,0.20673,194.74,194.6,19.64666722]
[1731008576760,2.5643,194.71,194.64,2.5651]
[1731008577152,0.20673,194.74,194.65,2.5651]
[1731008578164,2.5645,194.71,194.65,2.5651]
[1731008578557,0.20673,194.74,194.64,5.03161305]
[1731008579553,19.85339722,194.74,194.62,4.04]
[1731008579750,19.85339722,194.74,194.58,19.64666722]
[1731008579961,2.5655,194.63,194.58,2.5659]
[1731008580261,19.64666722,194.68,194.56,6.535]
[1731008580463,2.5652,194.65,194.58,2.566]
[1731008580662,19.64666722,194.68,194.56,6.535]
[1731008581165,19.64666722,194.72,194.56,6.535]
[1731008581763,2.565,194.67,194.61,2.5655]
[1731008581967,19.64666722,194.72,194.61,2.50291037]
[1731008582268,19.64666722,194.72,194.57,19.64666722]
[1731008582474,2.5647,194.69,194.64,2.5652]
[1731008582661,0.20673,194.74,194.63,6.57371226]
[1731008583764,2.5646,194.7,194.65,2.565]
[1731008584065,0.20673,194.74,194.64,1.2815]
[1731008584263,0.20673,194.74,194.64,20.92816722]
[1731008584466,0.20673,194.74,194.66,19.64666722]
[1731008585362,0.20673,194.74,194.71,2.5645]
[1731008585564,0.20673,194.74,194.71,4.04]
[1731008586962,2.5645,194.73,194.66,4.04]
[1731008587369,0.20673,194.74,194.66,4.04]
[1731008588071,0.20673,194.74,194.66,6.6053]
[1731008588867,0.20673,194.74,194.67,2.5651]
[1731008589072,0.20673,194.74,194.66,4.04]
[1731008589770,2.5644,194.73,194.66,4.04]
[1731008589969,0.20673,194.74,194.66,4.04]
[1731008590572,2.5645,194.72,194.66,4.04]
[1731008590969,2.5645,194.72,194.65,2.4409]
[1731008591273,2.5645,194.72,194.65,6.4809]
[1731008591475,0.20673,194.74,194.65,6.4809]
[1731008591476,2.5646,194.71,194.65,6.4809]
[1731008591868,0.20673,194.74,194.65,6.4809]
[1731008592371,2.5644,194.73,194.65,21.36627448]
[1731008592775,0.20673,194.74,194.65,21.36627448]
[1731008593168,2.5645,194.72,194.65,21.36627448]
[1731008594776,4.04,194.84,194.65,21.36627448]
[1731008594777,12.31997448,194.79,194.68,12.31997448]
[1731008595376,2.5644,194.74,194.68,14.88497448]
[1731008595673,12.31997448,194.76,194.65,18.80087448]
[1731008595878,12.31997448,194.79,194.68,12.31997448]
[1731008596079,2.5642,194.75,194.69,2.5648]
[1731008596473,2.5642,194.75,194.68,12.31997448]
[1731008596678,2.5642,194.75,194.7,2.5648]
[1731008596881,2.5643,194.74,194.68,12.31997448]
[1731008597069,12.31997448,194.77,194.68,3.94]
[1731008597480,12.31997448,194.72,194.65,2.4409]
[1731008597679,12.31997448,194.72,194.66,2.5653]
[1731008597876,12.31997448,194.75,194.65,6.3809]
[1731008598077,12.31997448,194.75,194.65,2.4409]
[1731008598279,2.5645,194.72,194.65,2.4409]
[1731008598473,12.31997448,194.75,194.65,2.4409]
[1731008598681,2.5653,194.66,194.61,2.5659]
[1731008599077,12.31997448,194.7,194.61,2.5659]
[1731008599276,2.5649,194.7,194.63,2.5657]
[1731008599477,12.31997448,194.73,194.63,2.57694264]
[1731008599678,12.31997448,194.73,194.61,12.31997448]
[1731008599879,12.31997448,194.75,194.64,12.31997448]
[1731008600078,12.31997448,194.75,194.65,4.94594364]
[1731008600278,12.31997448,194.75,194.65,7.51134364]
[1731008600681,2.5648,194.71,194.65,7.51134364]
[1731008602470,2.5648,194.71,194.66,2.5653]
[1731008602676,12.31997448,194.78,194.66,12.31997448]
[1731008602874,12.31997448,194.78,194.66,13.55597448]
[1731008603177,2.5644,194.73,194.68,2.565]
[1731008603580,12.31997448,194.78,194.68,2.565]
[1731008604282,2.5644,194.73,194.68,2.565]
[1731008604477,0.18251,194.81,194.66,1.236]
[1731008604682,12.31997448,194.73,194.66,1.236]
[1731008604880,12.31997448,194.73,194.65,2.4252]
[1731008605383,2.565,194.69,194.65,2.4252]
[1731008605579,12.31997448,194.73,194.65,2.4252]
[1731008605784,12.31997448,194.73,194.62,2.55409199]
[1731008605985,12.31997448,194.7,194.61,1.2497]
[1731008606185,12.31997448,194.7,194.59,2.5662]
[1731008606385,3.94,194.78,194.56,17.50967448]
[1731008606386,2.5657,194.64,194.56,17.50967448]
[1731008606684,12.31997448,194.7,194.59,12.31997448]
[1731008607095,12.31997448,194.7,194.6,2.5661]
[1731008607096,2.5652,194.67,194.6,2.5661]
[1731008607381,12.31997448,194.73,194.59,12.31997448]
[1731008607581,2.565,194.69,194.62,12.31997448]
[1731008607788,12.31997448,194.75,194.63,2.54742133]
[1731008607982,12.31997448,194.78,194.63,3.94]
[1731008608183,2.5643,194.75,194.69,12.31997448]
[1731008608383,12.31997448,194.8,194.67,2.5651]
[1731008608584,2.5642,194.75,194.69,2.5648]
[1731008608786,12.31997448,194.8,194.69,12.31997448]
[1731008608987,12.31997448,194.8,194.65,1.2419]
[1731008609186,12.31997448,194.8,194.7,12.31997448]
[1731008609381,2.5643,194.74,194.7,12.31997448]
[1731008609586,0.18251,194.81,194.68,19.70367524]
[1731008609989,2.5639,194.78,194.71,2.5647]
[1731008610182,0.18251,194.81,194.71,2.5647]
[1731008610890,0.18251,194.81,194.7,2.5648]
[1731008611792,0.18251,194.81,194.68,19.70367524]
[1731008612089,19.70367524,194.83,194.68,19.70367524]
[1731008612291,2.5637,194.79,194.68,19.70367524]
[1731008612483,19.70367524,194.83,194.71,2.5646]
[1731008612989,2.5636,194.8,194.71,2.5646]
[1731008613190,19.70367524,194.83,194.71,2.5646]
[1731008613584,2.564,194.76,194.71,2.5646]
[1731008615495,19.70367524,194.86,194.73,2.5644]
[1731008615886,2.5635,194.81,194.76,2.5639]
[1731008616487,2.5635,194.8,194.76,2.5639]
[1731008616882,19.70367524,194.86,194.76,2.5639]
[1731008617091,2.5634,194.81,194.76,2.5639]
[1731008617687,19.70367524,194.86,194.76,2.5639]
[1731008617887,2.5635,194.8,194.76,2.5639]
[1731008618194,19.70367524,194.83,194.72,4.98322097]
[1731008618390,19.70367524,194.86,194.72,4.98322097]
[1731008618591,19.70367524,194.86,194.73,19.70367524]
[1731008618891,19.70367524,194.86,194.76,2.5639]
[1731008619196,2.5634,194.81,194.76,2.5639]
[1731008620691,2.5637,194.79,194.74,1.2542]
[1731008620891,19.70367524,194.83,194.74,1.2542]
[1731008621092,19.70367524,194.83,194.72,4.98322097]
[1731008621290,2.5639,194.77,194.72,2.4739]
[1731008621595,19.70367524,194.8,194.72,2.4739]
[1731008621989,19.70367524,194.76,194.69,1.2542]
[1731008622192,19.70367524,194.74,194.66,2.5304]
[1731008623695,19.70367524,194.76,194.66,2.5304]
[1731008623895,19.70367524,194.76,194.67,2.5651]
[1731008624096,19.70367524,194.79,194.66,2.5304]
[1731008624397,2.5639,194.78,194.69,2.5649]
[1731008624593,19.70367524,194.79,194.66,2.5304]
[1731008624898,19.70367524,194.82,194.68,19.70367524]
[1731008625100,2.5637,194.79,194.71,2.5646]
[1731008625291,19.70367524,194.82,194.69,3.94]
[1731008625890,2.5635,194.8,194.73,2.5643]
[1731008626105,2.5635,194.8,194.74,6.28620496]
[1731008626599,2.5634,194.81,194.74,6.28620496]
[1731008626896,19.70367524,194.86,194.74,6.28620496]
[1731008627201,2.563,194.84,194.74,6.28620496]
[1731008627500,2.563,194.84,194.77,2.5638]
[1731008627803,2.5627,194.86,194.76,23.66367524]
[1731008627991,19.70367524,194.92,194.81,2.5633]
[1731008628195,2.5625,194.88,194.81,2.5633]
[1731008628395,19.70367524,194.95,194.79,19.70367524]
[1731008628597,19.70367524,194.95,194.83,2.5631]
[1731008628793,2.5623,194.9,194.83,2.5631]
[1731008628994,19.70367524,194.95,194.84,5.0595]
[1731008629294,2.562,194.91,194.85,2.62459447]
[1731008629696,36.96,195.03,194.84,2.4967]
[1731008629697,19.70367524,194.98,194.84,2.4967]
[1731008629894,2.5619,194.93,194.84,2.4967]
[1731008630099,2.5619,194.93,194.84,5.0774401]
[1731008630300,2.5619,194.93,194.87,2.5625]
[1731008630502,2.5619,194.93,194.87,5.16088735]
[1731008630703,2.5619,194.93,194.87,2.5625]
[1731008630900,2.5618,194.93,194.87,2.5625]
[1731008631202,2.5618,194.93,194.87,5.18319]
[1731008631402,2.5618,194.93,194.87,2.5625]
[1731008632103,2.5616,194.95,194.87,5.1826773]
[1731008632300,19.70367524,194.98,194.87,2.5625]
[1731008632804,2.5617,194.94,194.88,2.54096442]
[1731008634300,19.70367524,194.98,194.85,19.70367524]
[1731008634504,2.5619,194.93,194.86,2.5627]
[1731008635300,2.5619,194.93,194.87,2.56916318]
[1731008636803,2.5619,194.93,194.87,5.13166318]
[1731008636998,19.70367524,194.98,194.85,19.70367524]
[1731008637398,12.30910126,194.96,194.85,14.87190126]
[1731008637594,12.30910126,194.96,194.85,2.5628]
[1731008637793,36.96,195.03,194.88,12.30910126]
[1731008637995,2.5618,194.93,194.88,12.30910126]
[1731008638193,2.5618,194.93,194.85,12.30910126]
[1731008638397,2.5618,194.93,194.87,2.5624]
[1731008639097,2.5618,194.94,194.88,14.87150126]
[1731008639297,12.30910126,194.99,194.88,12.30910126]
[1731008639498,12.30910126,194.99,194.88,14.86390925]
[1731008639703,2.5615,194.95,194.9,2.5621]
[1731008640008,12.30910126,194.99,194.88,14.86390925]
[1731008640210,12.30910126,194.96,194.87,3.94]
[1731008640503,12.30910126,194.93,194.85,2.57684386]
[1731008640696,2.5621,194.91,194.86,2.5626]
[1731008641309,2.5619,194.92,194.86,14.87170126]
[1731008641701,12.30910126,194.96,194.87,2.5625]
[1731008641904,12.30910126,194.98,194.87,2.5625]
[1731008642602,2.5618,194.94,194.88,2.5623]
[1731008642795,12.30910126,194.98,194.89,12.30910126]
[1731008643403,2.5616,194.95,194.89,14.87130126]
[1731008643906,2.5612,194.98,194.89,14.87130126]
[1731008644110,12.30910126,195.01,194.89,14.87130126]
[1731008644309,12.30910126,195.01,194.89,12.30910126]
[1731008644510,2.5619,194.93,194.89,12.30910126]
[1731008645004,12.30910126,194.98,194.85,2.57684386]
[1731008645208,2.5619,194.92,194.87,14.87160126]
[1731008645405,2.5619,194.92,194.87,17.43768112]
[1731008645805,2.5618,194.93,194.88,2.5624]
[1731008646003,12.30910126,194.98,194.87,12.30910126]
[1731008647306,2.5622,194.9,194.84,18.74580126]
[1731008647602,2.5622,194.9,194.84,14.80580126]
[1731008647809,2.5622,194.9,194.84,17.40700438]
[1731008648811,2.5622,194.9,194.85,2.5628]
[1731008649411,2.562,194.92,194.87,12.30910126]
[1731008650908,2.5619,194.92,194.87,12.30910126]
[1731008651117,12.30910126,194.98,194.87,12.30910126]
[1731008651411,2.5621,194.91,194.87,12.30910126]
[1731008651617,12.30910126,194.98,194.89,12.30910126]
[1731008651914,2.5619,194.92,194.89,12.30910126]
[1731008652208,12.30910126,194.98,194.89,12.30910126]
[1731008652415,2.5617,194.94,194.89,14.87140126]
[1731008654416,12.30910126,195.04,194.92,12.30910126]
[1731008655212,12.30910126,195.04,194.92,14.87090126]
[1731008655409,12.30910126,195.04,194.92,12.30910126]
[1731008655610,12.30910126,195.04,194.94,12.30910126]
[1731008655808,12.30910126,195.07,194.94,12.30910126]
[1731008656220,12.30910126,195.07,194.97,12.30910126]
[1731008657014,2.5607,195.01,194.97,12.30910126]
[1731008657211,3.8,195.09,194.98,12.30910126]
[1731008657417,16.10910126,195.09,194.98,12.30910126]
[1731008657615,16.10910126,195.09,194.98,14.87010126]
[1731008658215,2.5606,195.02,194.98,14.87010126]
[1731008658918,2.5604,195.04,194.98,14.87010126]
[1731008659123,12.30910126,195.12,195.01,12.30910126]
[1731008659321,2.56,195.07,195.01,12.30910126]
[1731008659627,2.56,195.07,195.01,14.86970126]
[1731008660125,12.30910126,195.14,195.04,12.30910126]
[1731008660815,12.30910126,195.14,195.04,14.86930126]
[1731008661319,16.10910126,195.17,195.06,14.86910126]
[1731008661514,12.30910126,195.17,195.06,14.86910126]
[1731008661715,2.5594,195.11,195.06,14.86910126]
[1731008662119,12.30910126,195.17,195.06,14.86910126]
[1731008662718,2.559,195.14,195.06,14.86910126]
[1731008662920,12.30910126,195.17,195.06,14.86910126]
[1731008663123,12.30910126,195.12,195.03,3.8]
[1731008663422,2.5596,195.1,195.03,18.72520116]
[1731008663621,12.30910126,195.15,195.03,18.72520116]
[1731008663812,12.30910126,195.18,195.06,12.30910126]
[1731008664017,12.30910126,195.2,195.1,12.30910126]
[1731008664415,2.5584,195.19,195.13,12.30910126]
[1731008664622,12.30910126,195.22,195.13,12.30910126]
[1731008665028,2.557,195.3,195.15,2.5588]
[1731008665321,12.30910126,195.29,195.16,12.30910126]
[1731008665521,12.30910126,195.31,195.19,12.30910126]
[1731008665725,12.30910126,195.31,195.21,12.30910126]
[1731008666226,3.78,195.38,195.24,12.30910126]
[1731008666428,12.30910126,195.35,195.24,12.30910126]
[1731008667024,12.30910126,195.35,195.22,2.4658]
[1731008667025,2.5564,195.34,195.27,2.5572]
[1731008667223,12.30910126,195.41,195.29,12.30910126]
[1731008667629,12.30910126,195.41,195.3,2.5569]
[1731008667930,12.30910126,195.41,195.32,12.30910126]
[1731008668121,2.5556,195.4,195.32,14.86570126]
[1731008668325,12.30910126,195.43,195.32,12.30910126]
[1731008668731,12.30910126,195.45,195.34,12.30910126]
[1731008670023,2.5557,195.4,195.34,12.30910126]
[1731008670727,12.30910126,195.42,195.33,6.2771]
[1731008670926,12.30910126,195.39,195.33,3.78]
[1731008671524,2.5562,195.36,195.3,3.78]
[1731008671724,12.30910126,195.39,195.3,3.78]
[1731008671920,12.30910126,195.37,195.29,3.78]
[1731008672125,12.30910126,195.34,195.23,13.49150126]
[1731008672323,12.30910126,195.32,195.25,3.78]
[1731008672521,2.557,195.29,195.25,3.78]
[1731008672728,12.30910126,195.32,195.25,3.78]
[1731008673325,12.30910126,195.32,195.05,36.88]
[1731008673519,19.64936632,195.31,195.16,19.64936632]
[1731008673730,19.64936632,195.31,195.17,3.78]
[1731008673927,2.5575,195.26,195.19,2.5583]
[1731008674136,19.64936632,195.31,195.19,3.78]
[1731008675033,2.5578,195.24,195.19,3.78]
[1731008675631,19.64936632,195.31,195.19,3.78]
[1731008675830,2.558,195.22,195.19,3.78]
[1731008676036,19.64936632,195.28,195.19,3.78]
[1731008676225,19.64936632,195.28,195.14,1.1952]
[1731008676429,19.64936632,195.28,195.14,4.9752]
[1731008676630,2.5584,195.19,195.14,4.9752]
[1731008677030,2.5584,195.19,195.14,1.1952]
[1731008677230,19.64936632,195.28,195.14,1.1952]
[1731008677434,2.5582,195.21,195.14,3.7542]
[1731008677731,19.64936632,195.28,195.14,1.1952]
[1731008677932,19.64936632,195.31,195.17,2.5585]
[1731008678931,19.64936632,195.28,195.14,1.1952]
[1731008679632,19.64936632,195.31,195.14,1.1952]
[1731008679837,2.5582,195.21,195.16,19.64936632]
[1731008680335,2.5584,195.19,195.16,19.64936632]
[1731008681437,2.5582,195.2,195.16,19.64936632]
[1731008682135,2.5584,195.19,195.16,19.64936632]
[1731008682737,19.64936632,195.28,195.14,1.1952]
[1731008683141,19.64936632,195.28,195.12,19.64936632]
[1731008683330,19.64936632,195.25,195.12,19.64936632]
[1731008684142,23.42936632,195.25,195.08,3.78]
[1731008684339,23.42936632,195.25,195.11,19.64936632]
[1731008684834,2.5588,195.16,195.11,19.64936632]
[1731008685738,23.42936632,195.25,195.11,19.64936632]
[1731008686134,19.64936632,195.21,195.08,19.64936632]
[1731008686335,2.5595,195.11,195.08,19.64936632]
[1731008688638,2.5596,195.1,195.08,19.64936632]
[1731008688944,2.4296,195.2,195.07,19.65733355]
[1731008689941,2.5595,195.11,195.07,19.65733355]
[1731008691944,2.5593,195.12,195.07,19.65733355]
[1731008692441,2.5593,195.12,195.07,22.21723355]
[1731008693036,2.4296,195.2,195.07,22.21723355]
[1731008693244,2.4296,195.2,195.08,2.5597]
[1731008693542,2.559,195.15,195.1,19.65733355]
[1731008694344,2.559,195.15,195.1,22.21683355]
[1731008694543,2.5587,195.17,195.1,19.65733355]
[1731008694734,1.1713,195.24,195.12,2.5592]
[1731008694939,1.1713,195.24,195.13,19.65733355]
[1731008695139,3.74,195.25,195.13,19.65733355]
[1731008695345,3.74,195.25,195.14,19.65823268]
[1731008695543,2.558,195.22,195.14,19.65823268]
[1731008695843,3.74,195.25,195.14,19.65823268]
[1731008696237,2.5582,195.2,195.14,19.65823268]
[1731008696443,3.74,195.25,195.14,22.23958819]
[1731008697041,3.74,195.25,195.18,12.28294959]
[1731008697852,2.5582,195.21,195.18,12.28294959]
[1731008700349,3.74,195.25,195.15,12.28294959]
[1731008700547,12.28294959,195.23,195.12,15.97764959]
[1731008701049,2.5588,195.16,195.12,18.53684959]
[1731008701355,2.5588,195.16,195.12,15.97764959]
[1731008702343,3.74,195.25,195.1,12.28294959]
[1731008702344,2.559,195.14,195.1,12.28294959]
[1731008703656,2.559,195.14,195.09,2.5596]
[1731008703955,2.559,195.14,195.07,14.74724959]
[1731008704464,12.28294959,195.17,195.07,14.74724959]
[1731008704955,2.5595,195.11,195.07,17.30714959]
[1731008705959,2.5593,195.12,195.08,2.5598]
[1731008706148,3.74,195.18,195.08,2.5598]
[1731008707151,2.5594,195.11,195.07,17.30714959]
[1731008707356,12.28294959,195.17,195.07,17.30714959]
[1731008707750,2.5595,195.11,195.07,17.30714959]
[1731008708950,2.5595,195.11,195.07,2.5599]
[1731008709154,12.28294959,195.17,195.05,12.28294959]
[1731008709355,2.5596,195.1,195.05,12.28294959]
[1731008709852,2.5596,195.1,195.06,2.56]
[1731008710049,2.5595,195.11,195.06,2.56]
[1731008710252,12.28294959,195.17,195.05,12.28294959]
[1731008710450,12.28294959,195.17,195.07,12.28294959]
[1731008710650,2.559,195.14,195.07,12.28294959]
[1731008710855,12.28294959,195.17,195.09,2.5596]
[1731008711255,12.28294959,195.17,195.07,12.28294959]
[1731008711256,12.28294959,195.17,195.07,14.85601205]
[1731008711451,12.28294959,195.2,195.1,12.28294959]
[1731008711668,64.25685836,195.22,195.12,12.28294959]
[1731008711959,12.28294959,195.22,195.13,2.51326611]
[1731008712163,3.74,195.23,195.15,2.5588]
[1731008712658,2.5583,195.2,195.14,5.06868122]
[1731008712850,2.5583,195.2,195.14,2.50968122]
[1731008713455,2.5583,195.2,195.15,2.5588]
[1731008713962,3.74,195.23,195.15,2.5588]
[1731008714164,3.74,195.23,195.13,2.5007]
[1731008714374,12.28294959,195.22,195.13,1.2913]
[1731008714662,2.5593,195.13,195.11,1.2498]
[1731008717560,2.5593,195.12,195.11,1.2498]
[1731008719265,2.5596,195.1,195.06,2.5601]
[1731008719458,19.66066121,195.23,195.05,19.66066121]
[1731008719667,3.74,195.23,195.08,19.66066121]
[1731008719860,2.5586,195.18,195.14,2.559]
[1731008720569,3.74,195.26,195.18,2.5585]
[1731008720864,2.5576,195.25,195.18,2.5585]
[1731008721067,19.66066121,195.28,195.18,2.5585]
[1731008721262,19.66066121,195.28,195.2,2.5582]
[1731008722266,2.5577,195.25,195.2,2.5582]
[1731008722473,19.66066121,195.28,195.2,2.5582]
[1731008722667,2.5576,195.25,195.2,2.5582]
[1731008723263,2.5574,195.27,195.22,2.5579]
[1731008723571,51.94837379,195.32,195.18,19.66066121]
[1731008723767,51.94837379,195.32,195.21,19.66066121]
[1731008723970,19.66066121,195.38,195.22,3.74]
[1731008724168,19.66066121,195.38,195.24,19.66066121]
[1731008724471,19.66066121,195.38,195.25,3.7015]
[1731008724659,3.74,195.4,195.25,3.7015]
[1731008724660,2.556,195.37,195.3,2.5568]
[1731008724864,3.74,195.4,195.28,19.66066121]
[1731008725065,3.74,195.4,195.28,22.18593307]
[1731008725264,3.74,195.4,195.32,2.5566]
[1731008725660,19.66066121,195.41,195.32,2.5566]
[1731008726068,19.66066121,195.41,195.33,2.5565]
[1731008726970,2.5559,195.38,195.33,2.5565]
[1731008727561,2.5558,195.39,195.33,2.5565]
[1731008727766,19.66066121,195.44,195.31,19.66066121]
[1731008728364,2.5554,195.42,195.36,2.5561]
[1731008728575,19.66066121,195.44,195.31,19.66066121]
[1731008728875,2.5558,195.39,195.31,2.5567]
[1731008729167,2.5558,195.39,195.29,3.74]
[1731008729373,2.5559,195.38,195.31,2.5568]
[1731008729564,19.66066121,195.41,195.29,3.74]
[1731008729765,19.66066121,195.41,195.25,3.7015]
[1731008729968,2.5567,195.32,195.26,2.5574]
[1731008730974,2.5565,195.34,195.25,3.7015]
[1731008731168,19.66066121,195.37,195.25,3.7015]
[1731008731669,2.5567,195.32,195.26,2.5574]
[1731008732070,19.66066121,195.37,195.25,3.7015]
[1731008732466,2.5565,195.34,195.28,2.5572]
[1731008732666,19.66066121,195.37,195.28,2.5572]
[1731008732975,2.5564,195.35,195.28,2.5572]
[1731008733272,19.66066121,195.37,195.28,2.5572]
[1731008734777,2.5565,195.33,195.28,2.5572]
[1731008735475,2.5563,195.35,195.28,2.5572]
[1731008735681,19.66066121,195.37,195.28,2.5572]
[1731008736975,19.66066121,195.37,195.28,5.05944973]
[1731008737274,3.74,195.39,195.28,5.05944973]
[1731008737474,2.5562,195.36,195.28,5.05944973]
[1731008737675,3.74,195.39,195.29,2.557]
[1731008737876,3.74,195.39,195.25,23.35150969]
[1731008738474,19.65000969,195.43,195.28,19.65000969]
[1731008738673,12.2741276,195.42,195.31,12.2741276]
[1731008739073,2.5558,195.39,195.33,2.5565]
[1731008739676,2.5556,195.41,195.34,13.5271276]
[1731008739978,12.2741276,195.45,195.35,1.1898]
[1731008740179,12.2741276,195.45,195.35,2.3886]
[1731008740375,51.90947422,195.46,195.37,2.5559]
[1731008740376,2.5553,195.42,195.37,2.5559]
[1731008741177,12.2741276,195.5,195.39,14.8298276]
[1731008741483,12.26771059,195.5,195.4,12.26771059]
[1731008742482,2.5547,195.47,195.4,12.26771059]
[1731008742777,2.5547,195.47,195.42,2.5552]
[1731008743176,19.6372095,195.5,195.37,3.74]
[1731008743383,19.6372095,195.47,195.37,6.296]
[1731008743874,2.5554,195.42,195.37,6.296]
[1731008744679,19.6372095,195.47,195.35,2.3886]
[1731008744883,2.5557,195.4,195.35,2.3886]
[1731008746176,2.5557,195.4,195.29,35.0272095]
[1731008746379,2.5557,195.4,195.31,2.4843]
[1731008746581,2.5557,195.4,195.31,5.03691389]
[1731008746884,2.5558,195.39,195.34,2.5564]
[1731008747182,19.6372095,195.44,195.31,2.4843]
[1731008747374,19.6372095,195.44,195.31,5.0411]
[1731008747578,19.6372095,195.44,195.31,2.4843]
[1731008747779,19.6372095,195.44,195.31,5.03040621]
[1731008748586,2.5562,195.36,195.31,7.58720621]
[1731008749188,19.6372095,195.38,195.28,2.5572]
[1731008749486,19.6372095,195.38,195.26,3.72]
[1731008750281,2.5567,195.32,195.26,6.2774]
[1731008750588,19.6372095,195.38,195.23,19.6372095]
[1731008750779,2.5569,195.31,195.26,2.5574]
[1731008751276,19.6372095,195.38,195.25,2.5576]
[1731008751483,19.6372095,195.35,195.22,3.72]
[1731008752186,2.557,195.3,195.22,3.72]
[1731008752384,19.6372095,195.35,195.22,3.72]
[1731008752577,2.5573,195.27,195.2,19.6372095]
[1731008753488,2.5573,195.27,195.21,2.5581]